[Event "Early-Titled-Tuesday-Blitz-April-23-2024"]
[Site "Chess.com"]
[Date "2024.04.23"]
[Round "11"]
[White "stepanosinovsky"]
[Black "dianamirza"]
[Result "1-0"]
[WhiteElo "2379"]
[BlackElo "2017"]
[TimeControl "180+1"]
[EndTime "10:07:45 PDT"]
[Termination "stepanosinovsky won by resignation"]

1. e4 {[%clk 0:03:00.9]} 1... c5 {[%clk 0:02:52.3]} 2. Nf3 {[%clk 0:03:00.7]}
2... Nc6 {[%clk 0:02:51.5]} 3. Bb5 {[%clk 0:02:53]} 3... Qc7 {[%clk 0:02:50.9]}
4. O-O {[%clk 0:02:52.2]} 4... a6 {[%clk 0:02:45.2]} 5. Bxc6 {[%clk 0:02:51.2]}
5... Qxc6 {[%clk 0:02:46.1]} 6. d4 {[%clk 0:02:47.1]} 6... cxd4 {[%clk
0:02:43.2]} 7. Nxd4 {[%clk 0:02:47.1]} 7... Qxe4 {[%clk 0:02:41.6]} 8. Nc3
{[%clk 0:02:42.4]} 8... Qg6 {[%clk 0:02:38.7]} 9. Nd5 {[%clk 0:02:37.4]} 9...
Qd6 {[%clk 0:02:10.8]} 10. c4 {[%clk 0:02:25.5]} 10... Nf6 {[%clk 0:02:03.3]}
11. Bf4 {[%clk 0:02:23.9]} 11... e5 {[%clk 0:01:30.8]} 12. Bxe5 {[%clk
0:02:14.8]} 12... Qxe5 {[%clk 0:01:16.4]} 13. Re1 {[%clk 0:02:09.8]} 13... Qxe1+
{[%clk 0:01:00.9]} 14. Qxe1+ {[%clk 0:02:01.4]} 14... Kd8 {[%clk 0:01:01.8]} 15.
Qa5+ {[%clk 0:01:58]} 1-0

[Event "Early-Titled-Tuesday-Blitz-April-23-2024"]
[Site "Chess.com"]
[Date "2024.04.23"]
[Round "11"]
[White "KubaGepard"]
[Black "LLariMarc"]
[Result "1-0"]
[WhiteElo "2614"]
[BlackElo "2494"]
[TimeControl "180+1"]
[EndTime "10:07:55 PDT"]
[Termination "KubaGepard won by checkmate"]

1. d4 {[%clk 0:02:56.2]} 1... Nf6 {[%clk 0:02:57.2]} 2. Nf3 {[%clk 0:02:55.6]}
2... d5 {[%clk 0:02:47.2]} 3. c4 {[%clk 0:02:54.5]} 3... e6 {[%clk 0:02:45.3]}
4. Nc3 {[%clk 0:02:50.7]} 4... a6 {[%clk 0:02:38.5]} 5. e3 {[%clk 0:02:49.2]}
5... Nbd7 {[%clk 0:02:35.5]} 6. c5 {[%clk 0:02:49]} 6... b6 {[%clk 0:02:29.9]}
7. cxb6 {[%clk 0:02:48]} 7... cxb6 {[%clk 0:02:29.3]} 8. Bd3 {[%clk 0:02:48.4]}
8... Bb7 {[%clk 0:02:27]} 9. O-O {[%clk 0:02:47.3]} 9... Bd6 {[%clk 0:02:27.7]}
10. Qc2 {[%clk 0:02:47.1]} 10... O-O {[%clk 0:02:27.5]} 11. b3 {[%clk
0:02:37.5]} 11... Rc8 {[%clk 0:02:27.1]} 12. Bb2 {[%clk 0:02:37.2]} 12... b5
{[%clk 0:02:25.7]} 13. Qe2 {[%clk 0:02:36]} 13... Qa5 {[%clk 0:02:20.3]} 14.
Rac1 {[%clk 0:02:32.9]} 14... Rc7 {[%clk 0:02:16.5]} 15. Ne5 {[%clk 0:02:13.8]}
15... Nxe5 {[%clk 0:02:13.5]} 16. dxe5 {[%clk 0:02:11.7]} 16... Bxe5 {[%clk
0:02:13.4]} 17. Nxd5 {[%clk 0:02:08.4]} 17... Rxc1 {[%clk 0:02:01.7]} 18. Rxc1
{[%clk 0:01:52.8]} 18... Bxb2 {[%clk 0:01:47.4]} 19. Ne7+ {[%clk 0:01:49.4]}
19... Kh8 {[%clk 0:01:47.1]} 20. Qxb2 {[%clk 0:01:50.3]} 20... Qd8 {[%clk
0:01:46.5]} 21. Qa3 {[%clk 0:01:44.7]} 21... Qxd3 {[%clk 0:01:46]} 22. Ng6+
{[%clk 0:01:42.1]} 22... Qxg6 {[%clk 0:01:42.6]} 23. Qxf8+ {[%clk 0:01:40.5]}
23... Ng8 {[%clk 0:01:43.2]} 24. f3 {[%clk 0:01:40]} 24... Bxf3 {[%clk
0:01:42.6]} 25. Qxg8+ {[%clk 0:01:40.2]} 25... Kxg8 {[%clk 0:01:35.7]} 26. Rc8#
{[%clk 0:01:41.1]} 1-0

[Event "Early-Titled-Tuesday-Blitz-April-23-2024"]
[Site "Chess.com"]
[Date "2024.04.23"]
[Round "11"]
[White "Ramu_K_FM_FT"]
[Black "Roedor"]
[Result "0-1"]
[WhiteElo "2124"]
[BlackElo "2352"]
[TimeControl "180+1"]
[EndTime "10:08:05 PDT"]
[Termination "Roedor won by resignation"]

1. e4 {[%clk 0:00:18.5]} 1... e5 {[%clk 0:02:59.4]} 2. Nf3 {[%clk 0:00:19.1]}
2... Nc6 {[%clk 0:02:59.9]} 3. Bb5 {[%clk 0:00:13]} 3... Nf6 {[%clk 0:02:59.3]}
4. Ba4 {[%clk 0:00:13.9]} 4... Nxe4 {[%clk 0:02:58.3]} 5. O-O {[%clk 0:00:14.8]}
5... Nc5 {[%clk 0:02:54.4]} 6. d4 {[%clk 0:00:15.7]} 6... Nxa4 {[%clk
0:02:54.3]} 7. d5 {[%clk 0:00:12.5]} 7... Ne7 {[%clk 0:02:51.8]} 8. Nxe5 {[%clk
0:00:13.4]} 8... d6 {[%clk 0:02:51.9]} 9. b3 {[%clk 0:00:13.3]} 9... Nb6 {[%clk
0:02:49.1]} 10. Nd3 {[%clk 0:00:14.2]} 10... Nexd5 {[%clk 0:02:46.4]} 11. Ne5
{[%clk 0:00:15.1]} 11... dxe5 {[%clk 0:02:46.2]} 12. c4 {[%clk 0:00:14.8]} 12...
Nf6 {[%clk 0:02:45.6]} 13. Qe2 {[%clk 0:00:14.2]} 13... Be7 {[%clk 0:02:43.7]}
14. Bb2 {[%clk 0:00:15.1]} 14... O-O {[%clk 0:02:43.6]} 15. Bxe5 {[%clk
0:00:16]} 15... Bd6 {[%clk 0:02:42.9]} 16. Qb2 {[%clk 0:00:16.9]} 16... Bxe5
{[%clk 0:02:42.8]} 17. Qxe5 {[%clk 0:00:17.8]} 17... Re8 {[%clk 0:02:42.1]} 18.
Nc3 {[%clk 0:00:18.7]} 18... Rxe5 {[%clk 0:02:42]} 0-1

[Event "Early-Titled-Tuesday-Blitz-April-23-2024"]
[Site "Chess.com"]
[Date "2024.04.23"]
[Round "11"]
[White "BurningggIce"]
[Black "SharapovEvgeny"]
[Result "0-1"]
[WhiteElo "2454"]
[BlackElo "2624"]
[TimeControl "180+1"]
[EndTime "10:08:06 PDT"]
[Termination "SharapovEvgeny won by resignation"]

1. d4 {[%clk 0:03:00.9]} 1... d5 {[%clk 0:02:59.8]} 2. c4 {[%clk 0:03:01.3]}
2... c6 {[%clk 0:03:00.6]} 3. Nc3 {[%clk 0:03:01.7]} 3... Nf6 {[%clk 0:03:00.8]}
4. e3 {[%clk 0:03:02.1]} 4... e6 {[%clk 0:02:58.1]} 5. Nf3 {[%clk 0:03:02.5]}
5... Nbd7 {[%clk 0:02:57.9]} 6. Bd3 {[%clk 0:03:02.7]} 6... dxc4 {[%clk
0:02:57.9]} 7. Bxc4 {[%clk 0:03:03.6]} 7... b5 {[%clk 0:02:58.5]} 8. Be2 {[%clk
0:03:04.2]} 8... Bb7 {[%clk 0:02:58.7]} 9. e4 {[%clk 0:03:03.1]} 9... b4 {[%clk
0:02:58.8]} 10. e5 {[%clk 0:03:03.6]} 10... c5 {[%clk 0:02:59.4]} 11. exf6
{[%clk 0:02:57.1]} 11... bxc3 {[%clk 0:02:59.3]} 12. fxg7 {[%clk 0:02:49.5]}
12... Bxg7 {[%clk 0:02:59]} 13. bxc3 {[%clk 0:02:49.7]} 13... cxd4 {[%clk
0:02:58.7]} 14. cxd4 {[%clk 0:02:45.6]} 14... O-O {[%clk 0:02:58]} 15. O-O
{[%clk 0:02:44]} 15... Nb6 {[%clk 0:02:57.8]} 16. Rb1 {[%clk 0:02:39.5]} 16...
Rb8 {[%clk 0:02:57.2]} 17. Bd3 {[%clk 0:02:36.5]} 17... h6 {[%clk 0:02:55.4]}
18. Bf4 {[%clk 0:02:34.6]} 18... Rc8 {[%clk 0:02:55.1]} 19. Qe2 {[%clk
0:02:28.3]} 19... Bxf3 {[%clk 0:02:53.1]} 20. Qxf3 {[%clk 0:02:26]} 20... Qxd4
{[%clk 0:02:53.2]} 21. Rfd1 {[%clk 0:02:23]} 21... Qf6 {[%clk 0:02:51.1]} 22.
Qe4 {[%clk 0:02:21.7]} 22... Rfd8 {[%clk 0:02:45.8]} 23. Ba6 {[%clk 0:02:12]}
23... Rxd1+ {[%clk 0:02:42.3]} 24. Rxd1 {[%clk 0:02:12.9]} 24... Rd8 {[%clk
0:02:42.5]} 25. Rc1 {[%clk 0:02:06.6]} 25... Nd5 {[%clk 0:02:40.4]} 26. Bg3
{[%clk 0:02:04.6]} 26... Qb2 {[%clk 0:02:36.3]} 27. Qc4 {[%clk 0:01:41.8]} 27...
Nb4 {[%clk 0:02:28.8]} 28. Qc7 {[%clk 0:01:34.6]} 28... Bf6 {[%clk 0:02:11.9]}
29. Qf4 {[%clk 0:01:31]} 29... Nxa6 {[%clk 0:02:06.1]} 30. Qxh6 {[%clk
0:01:30.9]} 30... Bg7 {[%clk 0:02:02.3]} 31. Qg5 {[%clk 0:01:30.7]} 31... Qd2
{[%clk 0:01:53.2]} 32. Bf4 {[%clk 0:01:29.4]} 32... Qd1+ {[%clk 0:01:52]} 0-1

[Event "Early-Titled-Tuesday-Blitz-April-23-2024"]
[Site "Chess.com"]
[Date "2024.04.23"]
[Round "11"]
[White "rikchessmx"]
[Black "DamianoLew95"]
[Result "1-0"]
[WhiteElo "2299"]
[BlackElo "2739"]
[TimeControl "180+1"]
[EndTime "10:08:17 PDT"]
[Termination "rikchessmx won by resignation"]

1. e4 {[%clk 0:00:45.7]} 1... c5 {[%clk 0:02:58.6]} 2. Nf3 {[%clk 0:00:45.7]}
2... d6 {[%clk 0:02:58.8]} 3. d4 {[%clk 0:00:46.6]} 3... cxd4 {[%clk 0:02:59.4]}
4. Nxd4 {[%clk 0:00:47.3]} 4... Nf6 {[%clk 0:03:00.1]} 5. Nc3 {[%clk 0:00:46.7]}
5... Nc6 {[%clk 0:03:00.8]} 6. Bc4 {[%clk 0:00:43.1]} 6... Qb6 {[%clk
0:02:59.2]} 7. Nde2 {[%clk 0:00:43]} 7... e6 {[%clk 0:02:57.6]} 8. Bb3 {[%clk
0:00:43.5]} 8... Be7 {[%clk 0:02:58]} 9. Be3 {[%clk 0:00:44]} 9... Qc7 {[%clk
0:02:58]} 10. Nb5 {[%clk 0:00:43.9]} 10... Qb8 {[%clk 0:02:54.6]} 11. Bf4 {[%clk
0:00:44]} 11... e5 {[%clk 0:02:53.4]} 12. Be3 {[%clk 0:00:43.9]} 12... Nxe4
{[%clk 0:02:50.8]} 13. Qd5 {[%clk 0:00:42.4]} 13... f5 {[%clk 0:02:29.9]} 14.
Qf7+ {[%clk 0:00:39.4]} 14... Kd8 {[%clk 0:02:30.3]} 15. O-O-O {[%clk
0:00:31.6]} 15... a6 {[%clk 0:02:25.5]} 16. Nbc3 {[%clk 0:00:30.6]} 16... Rf8
{[%clk 0:02:15.4]} 17. Bb6+ {[%clk 0:00:29.9]} 17... Qc7 {[%clk 0:02:13.3]} 18.
Bxc7+ {[%clk 0:00:29.5]} 18... Kxc7 {[%clk 0:02:14.2]} 19. Qxg7 {[%clk
0:00:29.6]} 19... Bd7 {[%clk 0:02:11.6]} 20. Nd5+ {[%clk 0:00:29.2]} 20... Kd8
{[%clk 0:02:10.2]} 1-0

[Event "Early-Titled-Tuesday-Blitz-April-23-2024"]
[Site "Chess.com"]
[Date "2024.04.23"]
[Round "11"]
[White "Naruto75_3"]
[Black "hmatyi07"]
[Result "1/2-1/2"]
[WhiteElo "2378"]
[BlackElo "2310"]
[TimeControl "180+1"]
[EndTime "10:08:24 PDT"]
[Termination "Game drawn by repetition"]

1. d4 {[%clk 0:02:55.6]} 1... Nf6 {[%clk 0:02:57.5]} 2. c4 {[%clk 0:02:55.4]}
2... e6 {[%clk 0:02:55.3]} 3. Nc3 {[%clk 0:02:54.1]} 3... d5 {[%clk 0:02:53.1]}
4. cxd5 {[%clk 0:02:52.8]} 4... Nxd5 {[%clk 0:02:52.4]} 5. e4 {[%clk 0:02:51.6]}
5... Nxc3 {[%clk 0:02:51.8]} 6. bxc3 {[%clk 0:02:52.5]} 6... c5 {[%clk 0:02:52]}
7. Rb1 {[%clk 0:02:41.2]} 7... cxd4 {[%clk 0:02:49.5]} 8. cxd4 {[%clk
0:02:42.1]} 8... b6 {[%clk 0:02:50.2]} 9. Nf3 {[%clk 0:02:40.1]} 9... Bb7 {[%clk
0:02:50.3]} 10. Be3 {[%clk 0:02:14.7]} 10... Bxe4 {[%clk 0:02:43.3]} 11. Bb5+
{[%clk 0:02:12.2]} 11... Bc6 {[%clk 0:02:40.3]} 12. O-O {[%clk 0:02:09.3]} 12...
Bxb5 {[%clk 0:02:38.9]} 13. Rxb5 {[%clk 0:02:03.8]} 13... Be7 {[%clk 0:02:31.3]}
14. Ne5 {[%clk 0:01:58.9]} 14... O-O {[%clk 0:02:30.9]} 15. Qf3 {[%clk
0:01:56.6]} 15... Nd7 {[%clk 0:02:24.4]} 16. Nc6 {[%clk 0:01:53.1]} 16... Qe8
{[%clk 0:02:24.7]} 17. Rh5 {[%clk 0:01:52.7]} 17... Nf6 {[%clk 0:02:21.7]} 18.
Rh3 {[%clk 0:01:13.2]} 18... Nd5 {[%clk 0:01:47.8]} 19. Qh5 {[%clk 0:01:10.6]}
19... Nf6 {[%clk 0:01:44.6]} 20. Qf3 {[%clk 0:01:08.4]} 20... Nd5 {[%clk
0:01:42.2]} 21. Qh5 {[%clk 0:01:06.8]} 21... Nf6 {[%clk 0:01:36.6]} 22. Qf3
{[%clk 0:01:06]} 1/2-1/2

[Event "Early-Titled-Tuesday-Blitz-April-23-2024"]
[Site "Chess.com"]
[Date "2024.04.23"]
[Round "11"]
[White "GalaxyRoman"]
[Black "Durarbayli"]
[Result "1-0"]
[WhiteElo "2803"]
[BlackElo "2916"]
[TimeControl "180+1"]
[EndTime "10:08:39 PDT"]
[Termination "GalaxyRoman won by resignation"]

1. e4 {[%clk 0:03:00.9]} 1... e6 {[%clk 0:03:00.2]} 2. d4 {[%clk 0:02:59.9]}
2... d5 {[%clk 0:03:00.6]} 3. Nc3 {[%clk 0:02:59.4]} 3... Nf6 {[%clk 0:03:00.5]}
4. e5 {[%clk 0:02:59.2]} 4... Nfd7 {[%clk 0:03:00.9]} 5. f4 {[%clk 0:02:59.9]}
5... c5 {[%clk 0:03:01.3]} 6. Nf3 {[%clk 0:03:00.6]} 6... Nc6 {[%clk 0:03:01.9]}
7. Be3 {[%clk 0:03:01.1]} 7... cxd4 {[%clk 0:03:00.3]} 8. Nxd4 {[%clk
0:03:01.4]} 8... Qb6 {[%clk 0:03:00.8]} 9. Qd2 {[%clk 0:02:58.6]} 9... Qxb2
{[%clk 0:03:00.5]} 10. Rb1 {[%clk 0:02:58.4]} 10... Qa3 {[%clk 0:03:00.8]} 11.
Ncb5 {[%clk 0:02:51.2]} 11... Qxa2 {[%clk 0:02:55.6]} 12. Rb3 {[%clk 0:02:39.8]}
12... Nc5 {[%clk 0:02:50.5]} 13. Nc7+ {[%clk 0:02:34.9]} 13... Kd7 {[%clk
0:02:49.7]} 14. Nxa8 {[%clk 0:02:25.3]} 14... Nxb3 {[%clk 0:02:47.6]} 15. Nxb3
{[%clk 0:02:25.4]} 15... Bb4 {[%clk 0:02:45.8]} 16. c3 {[%clk 0:02:25.6]} 16...
Qxb3 {[%clk 0:02:41.7]} 17. cxb4 {[%clk 0:02:25.7]} 17... b6 {[%clk 0:02:30.7]}
18. Bb5 {[%clk 0:02:09.5]} 18... Qb1+ {[%clk 0:02:12]} 19. Kf2 {[%clk 0:01:56]}
19... Qxh1 {[%clk 0:02:11.4]} 20. Qa2 {[%clk 0:01:43.5]} 20... a6 {[%clk
0:01:26.8]} 21. Bxc6+ {[%clk 0:01:21.8]} 21... Kxc6 {[%clk 0:01:20.8]} 22. Qc2+
{[%clk 0:01:20.7]} 22... Kb7 {[%clk 0:01:14.8]} 23. Qc7+ {[%clk 0:01:18.1]}
23... Kxa8 {[%clk 0:01:15.2]} 24. Qxb6 {[%clk 0:01:17.6]} 24... d4 {[%clk
0:01:14.1]} 25. Bxd4 {[%clk 0:01:15]} 1-0

[Event "Early-Titled-Tuesday-Blitz-April-23-2024"]
[Site "Chess.com"]
[Date "2024.04.23"]
[Round "11"]
[White "duone"]
[Black "Unkreativ3"]
[Result "0-1"]
[WhiteElo "2446"]
[BlackElo "2592"]
[TimeControl "180+1"]
[EndTime "10:08:49 PDT"]
[Termination "Unkreativ3 won by resignation"]

1. e4 {[%clk 0:03:00.9]} 1... e6 {[%clk 0:02:59.5]} 2. d4 {[%clk 0:02:59.9]}
2... d5 {[%clk 0:02:59.7]} 3. Nc3 {[%clk 0:02:57.5]} 3... Nf6 {[%clk 0:02:58.3]}
4. Bg5 {[%clk 0:02:56.8]} 4... dxe4 {[%clk 0:02:55.7]} 5. Nxe4 {[%clk
0:02:56.7]} 5... Nbd7 {[%clk 0:02:53.8]} 6. Nf3 {[%clk 0:02:55.3]} 6... Be7
{[%clk 0:02:49.7]} 7. Nxf6+ {[%clk 0:02:55]} 7... Nxf6 {[%clk 0:02:46.4]} 8. Bd3
{[%clk 0:02:53.9]} 8... b6 {[%clk 0:02:34.1]} 9. c3 {[%clk 0:02:51.6]} 9... Bb7
{[%clk 0:02:31.1]} 10. O-O {[%clk 0:02:51.3]} 10... O-O {[%clk 0:02:26.1]} 11.
Ne5 {[%clk 0:02:49.2]} 11... h6 {[%clk 0:02:21.3]} 12. Bf4 {[%clk 0:02:48.5]}
12... c5 {[%clk 0:02:15.8]} 13. Bc2 {[%clk 0:02:47.5]} 13... cxd4 {[%clk
0:02:11.9]} 14. cxd4 {[%clk 0:02:47.4]} 14... Rc8 {[%clk 0:02:09]} 15. Qd3
{[%clk 0:02:47.2]} 15... Be4 {[%clk 0:02:08.3]} 16. Qg3 {[%clk 0:02:38.6]} 16...
Rxc2 {[%clk 0:01:49.9]} 17. Bxh6 {[%clk 0:02:37]} 17... Nh5 {[%clk 0:01:41.4]}
18. Qg4 {[%clk 0:02:34.3]} 18... Bf5 {[%clk 0:01:31.3]} 19. Qxh5 {[%clk
0:02:32.7]} 19... gxh6 {[%clk 0:01:30.7]} 20. Qxh6 {[%clk 0:02:32.9]} 20... Qxd4
{[%clk 0:01:24]} 21. Rae1 {[%clk 0:02:27.4]} 21... Qh4 {[%clk 0:01:18]} 22. Qe3
{[%clk 0:02:22.9]} 22... Bc5 {[%clk 0:01:14.3]} 23. Qf3 {[%clk 0:02:17.8]} 23...
Rxb2 {[%clk 0:01:10.1]} 24. g3 {[%clk 0:02:15.3]} 24... Qg5 {[%clk 0:01:07.6]}
25. Rd1 {[%clk 0:02:11.1]} 25... Bh3 {[%clk 0:01:05.3]} 26. Nd7 {[%clk
0:02:07.9]} 26... Bxf1 {[%clk 0:01:00.4]} 27. Nxf8 {[%clk 0:02:04]} 27... Rxf2
{[%clk 0:00:55.6]} 28. Qxf2 {[%clk 0:01:54.4]} 28... Bxf2+ {[%clk 0:00:56.5]}
29. Kxf2 {[%clk 0:01:54.8]} 29... Bb5 {[%clk 0:00:51.1]} 30. Rf1 {[%clk
0:01:55.7]} 30... Qc5+ {[%clk 0:00:47.5]} 31. Kg2 {[%clk 0:01:55.3]} 31... Bxf1+
{[%clk 0:00:45.4]} 32. Kxf1 {[%clk 0:01:56.2]} 32... Kxf8 {[%clk 0:00:45.7]} 0-1

[Event "Early-Titled-Tuesday-Blitz-April-23-2024"]
[Site "Chess.com"]
[Date "2024.04.23"]
[Round "11"]
[White "Sam_ChessMood"]
[Black "Oleksandr_Bortnyk"]
[Result "0-1"]
[WhiteElo "2980"]
[BlackElo "3117"]
[TimeControl "180+1"]
[EndTime "10:09:07 PDT"]
[Termination "Oleksandr_Bortnyk won by resignation"]

1. d4 {[%clk 0:02:59.9]} 1... Nf6 {[%clk 0:02:59.4]} 2. c4 {[%clk 0:02:58.6]}
2... b6 {[%clk 0:02:59.6]} 3. Nc3 {[%clk 0:02:58]} 3... Bb7 {[%clk 0:03:00.5]}
4. Qc2 {[%clk 0:02:57.1]} 4... g6 {[%clk 0:03:00.1]} 5. e4 {[%clk 0:02:56.8]}
5... d6 {[%clk 0:03:00.8]} 6. Nf3 {[%clk 0:02:57.1]} 6... Bg7 {[%clk 0:03:01.3]}
7. g3 {[%clk 0:02:53.9]} 7... O-O {[%clk 0:03:00.8]} 8. Bg2 {[%clk 0:02:54.2]}
8... c5 {[%clk 0:02:53.3]} 9. d5 {[%clk 0:02:53.2]} 9... Na6 {[%clk 0:02:53]}
10. O-O {[%clk 0:02:52.9]} 10... e6 {[%clk 0:02:53.5]} 11. h3 {[%clk 0:02:43.6]}
11... exd5 {[%clk 0:02:53.8]} 12. exd5 {[%clk 0:02:40]} 12... Nc7 {[%clk
0:02:53.5]} 13. a4 {[%clk 0:02:30.4]} 13... a6 {[%clk 0:02:50]} 14. Bf4 {[%clk
0:02:28.4]} 14... b5 {[%clk 0:02:50.1]} 15. b3 {[%clk 0:02:23.4]} 15... b4
{[%clk 0:02:48.5]} 16. Ne2 {[%clk 0:02:18.6]} 16... Re8 {[%clk 0:02:48.4]} 17.
Rae1 {[%clk 0:02:05.2]} 17... Bc8 {[%clk 0:02:44.5]} 18. Nh4 {[%clk 0:01:50.9]}
18... Nh5 {[%clk 0:02:41.3]} 19. Bc1 {[%clk 0:01:44.2]} 19... Qf6 {[%clk
0:02:36.6]} 20. Kh2 {[%clk 0:01:25.1]} 20... Bd7 {[%clk 0:02:32.4]} 21. Qd2
{[%clk 0:01:18.2]} 21... Re7 {[%clk 0:02:24.7]} 22. Nf4 {[%clk 0:01:05.5]} 22...
Nxf4 {[%clk 0:02:19.3]} 23. Qxf4 {[%clk 0:01:05]} 23... Rae8 {[%clk 0:02:18.2]}
24. Qxf6 {[%clk 0:00:57.6]} 24... Bxf6 {[%clk 0:02:18]} 25. Rxe7 {[%clk
0:00:57.9]} 25... Rxe7 {[%clk 0:02:18.9]} 26. Bf4 {[%clk 0:00:57.7]} 26... Ne8
{[%clk 0:02:16.4]} 27. Nf3 {[%clk 0:00:55]} 27... Re2 {[%clk 0:02:15.9]} 28. Nd2
{[%clk 0:00:45.5]} 28... Bf5 {[%clk 0:02:06.3]} 29. Bf3 {[%clk 0:00:44.5]} 29...
Re7 {[%clk 0:02:06]} 30. Be3 {[%clk 0:00:33.3]} 30... Bc3 {[%clk 0:02:03.1]} 31.
Re1 {[%clk 0:00:27.3]} 31... Bxd2 {[%clk 0:01:58.6]} 32. Bxd2 {[%clk 0:00:27]}
32... Rxe1 {[%clk 0:01:59.5]} 33. Bxe1 {[%clk 0:00:27.4]} 33... Bc2 {[%clk
0:02:00.4]} 0-1

[Event "Early-Titled-Tuesday-Blitz-April-23-2024"]
[Site "Chess.com"]
[Date "2024.04.23"]
[Round "11"]
[White "Keranke"]
[Black "GlavkonVVS"]
[Result "1-0"]
[WhiteElo "2867"]
[BlackElo "2632"]
[TimeControl "180+1"]
[EndTime "10:09:10 PDT"]
[Termination "Keranke won by resignation"]

1. c4 {[%clk 0:02:40.8]} 1... Nf6 {[%clk 0:02:59.6]} 2. g3 {[%clk 0:02:41.4]}
2... c5 {[%clk 0:03:00.1]} 3. Bg2 {[%clk 0:02:42]} 3... Nc6 {[%clk 0:03:00.5]}
4. Nf3 {[%clk 0:02:42.7]} 4... d6 {[%clk 0:03:01]} 5. O-O {[%clk 0:02:43.6]}
5... g6 {[%clk 0:03:01.2]} 6. d4 {[%clk 0:02:43.6]} 6... cxd4 {[%clk 0:03:01.2]}
7. Nxd4 {[%clk 0:02:44.5]} 7... Bd7 {[%clk 0:03:01.7]} 8. Nc3 {[%clk 0:02:44.5]}
8... Bg7 {[%clk 0:03:01.7]} 9. Nc2 {[%clk 0:02:41.1]} 9... O-O {[%clk
0:03:00.9]} 10. b3 {[%clk 0:02:40.5]} 10... a6 {[%clk 0:03:00.9]} 11. Bb2 {[%clk
0:02:41]} 11... Rc8 {[%clk 0:03:01]} 12. Qd2 {[%clk 0:02:39.1]} 12... Qa5 {[%clk
0:03:00.4]} 13. Rfd1 {[%clk 0:02:37.8]} 13... Rfe8 {[%clk 0:02:47.5]} 14. Ne3
{[%clk 0:02:36.9]} 14... b5 {[%clk 0:02:41.7]} 15. Rac1 {[%clk 0:02:30.2]} 15...
b4 {[%clk 0:02:37.4]} 16. Ncd5 {[%clk 0:02:29.7]} 16... Nxd5 {[%clk 0:02:37.1]}
17. Nxd5 {[%clk 0:02:28.2]} 17... Qxa2 {[%clk 0:02:30.9]} 18. Bxg7 {[%clk
0:02:27.7]} 18... Qxd2 {[%clk 0:02:30.5]} 19. Rxd2 {[%clk 0:02:28.1]} 19... Kxg7
{[%clk 0:02:30.7]} 20. Nb6 {[%clk 0:02:28.7]} 20... Na5 {[%clk 0:02:15.4]} 21.
Rb1 {[%clk 0:02:13.3]} 21... Rc7 {[%clk 0:02:12.9]} 22. Nxd7 {[%clk 0:02:12.9]}
22... Rxd7 {[%clk 0:02:12.8]} 23. Ra2 {[%clk 0:02:13.4]} 23... Nb7 {[%clk
0:01:52.9]} 24. Bc6 {[%clk 0:02:12.4]} 24... Red8 {[%clk 0:01:48.8]} 25. Bxd7
{[%clk 0:02:12]} 25... Rxd7 {[%clk 0:01:49.3]} 26. Rxa6 {[%clk 0:02:12.5]} 26...
Nc5 {[%clk 0:01:48.5]} 27. Rb6 {[%clk 0:02:11.8]} 27... Rb7 {[%clk 0:01:45]} 28.
Rxb7 {[%clk 0:02:09.6]} 28... Nxb7 {[%clk 0:01:45.1]} 29. Kf1 {[%clk 0:02:08.7]}
29... Nc5 {[%clk 0:01:45]} 30. Ke1 {[%clk 0:02:09.1]} 30... f5 {[%clk 0:01:39]}
31. f3 {[%clk 0:02:09.1]} 31... e5 {[%clk 0:01:38.8]} 32. Kd2 {[%clk 0:02:09.5]}
32... Kf6 {[%clk 0:01:38.8]} 33. Kc2 {[%clk 0:02:08.8]} 33... Ne6 {[%clk
0:01:27]} 34. Rd1 {[%clk 0:01:46.4]} 34... Nd4+ {[%clk 0:01:18.9]} 35. Rxd4
{[%clk 0:01:46.3]} 35... exd4 {[%clk 0:01:18.3]} 36. Kd3 {[%clk 0:01:47]} 36...
f4 {[%clk 0:01:04.4]} 37. gxf4 {[%clk 0:01:37.3]} 37... Kf5 {[%clk 0:01:04.4]}
38. Kxd4 {[%clk 0:01:36.7]} 38... Kxf4 {[%clk 0:01:04.7]} 39. Kd5 {[%clk
0:01:34.7]} 39... Ke3 {[%clk 0:01:03.5]} 40. Kxd6 {[%clk 0:01:35.2]} 40... Kxe2
{[%clk 0:01:03.7]} 41. c5 {[%clk 0:01:36.1]} 41... Kd3 {[%clk 0:01:04.1]} 42. c6
{[%clk 0:01:36.9]} 42... Kc3 {[%clk 0:01:04.7]} 43. c7 {[%clk 0:01:37.8]} 43...
Kxb3 {[%clk 0:01:05.3]} 44. c8=Q {[%clk 0:01:38.7]} 1-0

[Event "Early-Titled-Tuesday-Blitz-April-23-2024"]
[Site "Chess.com"]
[Date "2024.04.23"]
[Round "11"]
[White "AlexTruskavetsky"]
[Black "bazar-wokzal"]
[Result "0-1"]
[WhiteElo "2682"]
[BlackElo "2616"]
[TimeControl "180+1"]
[EndTime "10:09:14 PDT"]
[Termination "bazar-wokzal won by checkmate"]

1. d4 {[%clk 0:03:00.9]} 1... Nf6 {[%clk 0:02:58]} 2. c4 {[%clk 0:03:00.7]} 2...
Nc6 {[%clk 0:02:58]} 3. Nf3 {[%clk 0:02:58.7]} 3... e6 {[%clk 0:02:58]} 4. Nc3
{[%clk 0:02:58.7]} 4... Bb4 {[%clk 0:02:57.4]} 5. e3 {[%clk 0:02:53.8]} 5...
Bxc3+ {[%clk 0:02:56.7]} 6. bxc3 {[%clk 0:02:54.7]} 6... O-O {[%clk 0:02:56.4]}
7. Bd3 {[%clk 0:02:54.7]} 7... b6 {[%clk 0:02:56.2]} 8. O-O {[%clk 0:02:54.5]}
8... Ba6 {[%clk 0:02:55]} 9. Nd2 {[%clk 0:02:54.8]} 9... Na5 {[%clk 0:02:50.3]}
10. Qe2 {[%clk 0:02:54.6]} 10... d6 {[%clk 0:02:47.4]} 11. e4 {[%clk 0:02:54.4]}
11... e5 {[%clk 0:02:46.5]} 12. f4 {[%clk 0:02:51]} 12... c5 {[%clk 0:02:32.5]}
13. fxe5 {[%clk 0:02:29.1]} 13... dxe5 {[%clk 0:02:31.8]} 14. d5 {[%clk
0:02:26.9]} 14... Ne8 {[%clk 0:02:30]} 15. Nb3 {[%clk 0:02:27]} 15... Nb7 {[%clk
0:02:19.4]} 16. Be3 {[%clk 0:02:24.4]} 16... Ned6 {[%clk 0:02:18.9]} 17. Rf2
{[%clk 0:02:22.6]} 17... Qd7 {[%clk 0:02:18.8]} 18. a4 {[%clk 0:02:22.7]} 18...
f5 {[%clk 0:02:12.2]} 19. exf5 {[%clk 0:02:22.3]} 19... Nxf5 {[%clk 0:02:12.3]}
20. Bd2 {[%clk 0:02:21]} 20... Nfd6 {[%clk 0:01:59.8]} 21. Rxf8+ {[%clk
0:01:52.6]} 21... Rxf8 {[%clk 0:01:58.1]} 22. Qxe5 {[%clk 0:01:31.5]} 22... Bxc4
{[%clk 0:01:56.3]} 23. Bc2 {[%clk 0:01:30.1]} 23... Bxb3 {[%clk 0:01:38.8]} 24.
Bxb3 {[%clk 0:01:29.6]} 24... c4 {[%clk 0:01:38.7]} 25. Bc2 {[%clk 0:01:28.7]}
25... Nc5 {[%clk 0:01:38.5]} 26. Qd4 {[%clk 0:01:03.4]} 26... Nb3 {[%clk
0:01:34.4]} 27. Bxb3 {[%clk 0:01:02.5]} 27... cxb3 {[%clk 0:01:35.2]} 28. Rb1
{[%clk 0:01:02.6]} 28... Qf5 {[%clk 0:01:34.3]} 29. Re1 {[%clk 0:00:57.1]} 29...
b2 {[%clk 0:01:32.3]} 30. Qb4 {[%clk 0:00:56.8]} 30... Qf2+ {[%clk 0:01:22.9]}
31. Kh1 {[%clk 0:00:55.4]} 31... Qf1+ {[%clk 0:01:21.6]} 32. Rxf1 {[%clk
0:00:55.4]} 32... Rxf1# {[%clk 0:01:22]} 0-1